[Event "24th European Women Club Cup 2019"]
[Site "Ulcinj"]
[Date "2019.11.12"]
[Round "3.10"]
[White "Paehtz, Elisabeth"]
[Black "Velikic, Adela"]
[Result "1-0"]
[ECO "D02"]
[WhiteElo "2484"]
[BlackElo "2275"]
[Annotator "ChessBase"]
[PlyCount "103"]
[EventDate "2019.11.10"]
[EventType "team-tourn"]
[EventCountry "MNE"]
[SourceTitle "playchess.com"]
[Source "ChessBase"]
[SourceQuality "1"]
[WhiteTeam "Pentole Agnelli"]
[BlackTeam "Jelica PEP"]
[TimeControl "40/5400+30:1800+30"]

1. d4 {[%emt 0:00:00]} d5 {[%emt 0:00:00]} 2. Nf3 {[%emt 0:00:00]} Nf6 {[%emt 0:00:00]} 3. c4 {[%emt 0:00:00]} c6 {[%emt 0:00:00]} 4. Qc2 {[%emt 0:00:00]} dxc4 {[%emt 0:00:00]} 5. Qxc4 {[%emt 0:00:00]} Bf5 {[%emt 0:00:03]} 6. g3 {[%emt 0:00:00]} e6 {[%emt 0:00:06]} 7. Bg2 {[%emt 0:00:00]} Be7 {[%emt 0:00:16]} 8. O-O {[%emt 0:00:10]} O-O {[%emt 0:00:09]} 9. Qb3 {[%emt 0:00:07]} Qb6 {[%emt 0:02:13]} 10. Nbd2 {[%emt 0:00:04]} h6 {[%emt 0:10:10]} 11. Nc4 {[%emt 0:05:18]} Qa6 {[%emt 0:04:33]} 12. Bf4 {[%emt 0:08:34]} Rd8 {[%emt 0:10:49]} 13. Bc7 {[%emt 0:03:15]} Rd7 {[%emt 0:04:45]} 14. Be5 {[%emt 0:02:44]} Ne4 {[%emt 0:09:27]} 15. Rfd1 {[%emt 0:11:10]} c5 {[%emt 0:09:03]} 16. Nfd2 {[%emt 0:40:45]} Nxd2 {[%emt 0:01:55]} 17. Rxd2 {[%emt 0:00:04]} Nc6 {[%emt 0:05:09]} 18. e4 {[%emt 0:06:07]} Bg6 {[%emt 0:04:18]} 19. d5 {[%emt 0:00:45]} b5 {[%emt 0:09:17]} 20. dxc6 {[%emt 0:00:06]} bxc4 {[%emt 0:00:08]} 21. Qd1 {[%emt 0:00:07]} Rxd2 {[%emt 0:00:35]} 22. Qxd2 {[%emt 0:00:03]} Qxc6 {[%emt 0:00:15]} 23. Qe2 {[%emt 0:00:07]} Qa4 {[%emt 0:03:30]} 24. Bc3 {[%emt 0:03:17]} Rd8 {[%emt 0:01:47]} 25. h4 {[%emt 0:00:10]} Bf8 {[%emt 0:08:51]} 26. Bf1 {[%emt 0:02:23]} Qc6 {[%emt 0:01:31]} 27. Re1 {[%emt 0:00:19]} Rd3 {[%emt 0:03:07]} 28. h5 {[%emt 0:00:14]} Bh7 {[%emt 0:00:39]} 29. Qg4 {[%emt 0:00:28]} Rd4 {[%emt 0:02:44]} 30. Bxd4 {[%emt 0:02:06]} cxd4 {[%emt 0:00:02]} 31. Rc1 {[%emt 0:03:17]} c3 {[%emt 0:01:13]} 32. Bd3 {[%emt 0:01:12]} Be7 {[%emt 0:06:12]} 33. bxc3 {[%emt 0:01:07]} dxc3 {[%emt 0:00:15]} 34. Qf4 {[%emt 0:02:48]} Bd6 {[%emt 0:02:42]} 35. e5 {[%emt 0:04:01]} Ba3 {[%emt 0:00:34]} 36. Qd4 {[%emt 0:01:19]} Bxd3 {[%emt 0:01:08]} 37. Rxc3 {[%emt 0:01:38]} Qb5 {[%emt 0:00:25]} 38. Qxd3 {[%emt 0:00:40]} Qxd3 {[%emt 0:00:22]} 39. Rxd3 {[%emt 0:00:04]} Bc5 {[%emt 0:00:08]} 40. Rd8+ {[%emt 0:00:00]} Kh7 {[%emt 0:00:00]} 41. Rd7 {[%emt 0:00:20]} Kg8 {[%emt 0:01:12]} 42. Kf1 {[%emt 0:03:36]} Kf8 {[%emt 0:00:49]} 43. Ke2 {[%emt 0:00:06]} Ke8 {[%emt 0:00:29]} 44. Rb7 {[%emt 0:00:08]} Bd4 {[%emt 0:00:18]} 45. f4 {[%emt 0:00:19]} Bb6 {[%emt 0:00:44]} 46. Kf3 {[%emt 0:00:29]} Bc5 {[%emt 0:00:28]} 47. g4 {[%emt 0:00:07]} Bd4 {[%emt 0:00:20]} 48. Ke4 {[%emt 0:00:23]} Bf2 {[%emt 0:00:17]} 49. g5 {[%emt 0:00:45]} hxg5 {[%emt 0:00:31]} 50. fxg5 {[%emt 0:00:04]} Kf8 {[%emt 0:01:29]} 51. Rb8+ {[%emt 0:00:04]} Ke7 {[%emt 0:00:11]} 52. h6 {[%emt 0:00:05]} 1-0

[Event "24th European Women Club Cup 2019"]
[Site "Ulcinj"]
[Date "2019.11.12"]
[Round "3.11"]
[White "Eric, Jovana"]
[Black "Zimina, Olga"]
[Result "1-0"]
[ECO "B10"]
[WhiteElo "2314"]
[BlackElo "2406"]
[Annotator "NA"]
[PlyCount "65"]
[EventDate "2019.11.10"]
[EventType "team-tourn"]
[EventCountry "MNE"]
[SourceTitle "playchess.com"]
[Source "ChessBase"]
[SourceQuality "1"]
[WhiteTeam "Jelica PEP"]
[BlackTeam "Pentole Agnelli"]
[TimeControl "40/5400+30:1800+30"]

1. e4 {[%emt 0:00:00]} c6 {[%emt 0:00:00]} 2. Nf3 {[%emt 0:00:00]} d5 {[%emt 0:00:00]} 3. exd5 {[%emt 0:00:00]} cxd5 {[%emt 0:00:00]} 4. Ne5 {[%emt 0:00:10]} Nc6 {[%emt 0:00:07]} 5. d4 {[%emt 0:00:24]} e6 {[%emt 0:00:09]} 6. Bb5 {[%emt 0:01:14]} Qc7 {[%emt 0:00:17]} 7. Bf4 {[%emt 0:02:03]} Nf6 {[%emt 0:02:05]} 8. Bxc6+ {[%emt 0:14:41]} bxc6 {[%emt 0:00:12]} 9. Ng6 {[%emt 0:00:17]} Qb6 {[%emt 0:02:50]} 10. Nxh8 {[%emt 0:01:37]} Qxb2 {[%emt 0:00:10]} 11. Nd2 {[%emt 0:01:11]} Ba6 {[%emt 0:17:15]} 12. Rb1 {[%emt 0:18:07]} Qxd4 {[%emt 0:03:13]} 13. Be3 {[%emt 0:00:18]} Qc3 {[%emt 0:08:23]} 14. Rb3 {[%emt 0:01:39]} Qa5 {[%emt 0:00:06]} 15. Bd4 {[%emt 0:11:41]} Ne4 {[%emt 0:22:58]} 16. f3 {[%emt 0:15:26]} c5 {[%emt 0:08:55]} 17. fxe4 {[%emt 0:02:53]} cxd4 {[%emt 0:00:04]} 18. Qf3 {[%emt 0:01:31]} Qc7 {[%emt 0:08:00]} 19. exd5 {[%emt 0:00:39]} exd5 {[%emt 0:06:53]} 20. c4 {[%emt 0:06:10]} Bc5 {[%emt 0:02:27]} 21. O-O {[%emt 0:01:31]} O-O-O {[%emt 0:02:42]} 22. Nxf7 {[%emt 0:01:49]} Rd7 {[%emt 0:02:20]} 23. Ng5 {[%emt 0:04:32]} Qe5 {[%emt 0:00:32]} 24. Qf5 {[%emt 0:04:09]} Qe2 {[%emt 0:02:23]} 25. Nde4 {[%emt 0:03:04]} Be7 {[%emt 0:02:16]} 26. Rfb1 {[%emt 0:02:13]} Qxc4 {[%emt 0:02:28]} 27. Rb8+ {[%emt 0:02:05]} Kc7 {[%emt 0:00:03]} 28. Ne6+ {[%emt 0:01:28]} Kc6 {[%emt 0:00:07]} 29. Nd2 {[%emt 0:00:14]} Qc3 {[%emt 0:01:29]} 30. Nf3 {[%emt 0:00:20]} Qe3+ {[%emt 0:01:47]} 31. Kh1 {[%emt 0:00:03]} Bf6 {[%emt 0:00:20]} 32. Nexd4+ {[%emt 0:01:30]} Kd6 {[%emt 0:02:19]} 33. Qxf6+ {[%emt 0:00:21]} 1-0

[Event "24th European Women Club Cup 2019"]
[Site "Ulcinj"]
[Date "2019.11.12"]
[Round "3.12"]
[White "Brunello, Marina"]
[Black "Blagojevic, Tijana"]
[Result "1-0"]
[ECO "C65"]
[WhiteElo "2378"]
[BlackElo "2169"]
[Annotator "NA"]
[PlyCount "145"]
[EventDate "2019.11.10"]
[EventType "team-tourn"]
[EventCountry "MNE"]
[SourceTitle "playchess.com"]
[Source "ChessBase"]
[SourceQuality "1"]
[WhiteTeam "Pentole Agnelli"]
[BlackTeam "Jelica PEP"]
[TimeControl "40/5400+30:1800+30"]

1. e4 {[%emt 0:00:00]} e5 {[%emt 0:00:00]} 2. Nf3 {[%emt 0:00:00]} Nc6 {[%emt 0:00:00]} 3. Bb5 {[%emt 0:00:00]} Nf6 {[%emt 0:00:00]} 4. d3 {[%emt 0:00:05]} Bc5 {[%emt 0:00:00]} 5. Bxc6 {[%emt 0:00:17]} dxc6 {[%emt 0:00:57]} 6. Nbd2 {[%emt 0:00:13]} Be6 {[%emt 0:01:21]} 7. Nb3 {[%emt 0:02:59]} Bd6 {[%emt 0:00:24]} 8. Bg5 {[%emt 0:04:09]} h6 {[%emt 0:02:40]} 9. Bh4 {[%emt 0:03:13]} c5 {[%emt 0:00:34]} 10. Nbd2 {[%emt 0:03:19]} Qe7 {[%emt 0:03:30]} 11. Qe2 {[%emt 0:02:33]} g5 {[%emt 0:13:22]} 12. Bg3 {[%emt 0:04:28]} Nd7 {[%emt 0:00:54]} 13. Nf1 {[%emt 0:04:23]} f6 {[%emt 0:02:29]} 14. Ne3 {[%emt 0:00:28]} Nb8 {[%emt 0:01:04]} 15. Nd2 {[%emt 0:06:33]} Nc6 {[%emt 0:00:42]} 16. c3 {[%emt 0:00:07]} O-O-O {[%emt 0:02:27]} 17. Ndc4 {[%emt 0:15:30]} Qd7 {[%emt 0:02:25]} 18. O-O {[%emt 0:02:20]} Be7 {[%emt 0:03:08]} 19. Rfd1 {[%emt 0:00:10]} h5 {[%emt 0:00:21]} 20. h4 {[%emt 0:01:14]} Rdg8 {[%emt 0:02:29]} 21. a3 {[%emt 0:02:55]} gxh4 {[%emt 0:07:50]} 22. Bxh4 {[%emt 0:00:16]} Rg6 {[%emt 0:02:55]} 23. b4 {[%emt 0:06:23]} Rhg8 {[%emt 0:04:22]} 24. g3 {[%emt 0:01:07]} Nd8 {[%emt 0:12:41]} 25. Qxh5 {[%emt 0:07:08]} Bf7 {[%emt 0:14:35]} 26. Qf5 {[%emt 0:04:06]} Be6 {[%emt 0:00:16]} 27. Qf3 {[%emt 0:00:08]} Rh6 {[%emt 0:00:23]} 28. Kf1 {[%emt 0:00:30]} Bh3+ {[%emt 0:03:28]} 29. Ke1 {[%emt 0:01:03]} Ne6 {[%emt 0:01:15]} 30. Nd5 {[%emt 0:04:53]} Ng5 {[%emt 0:05:15]} 31. Bxg5 {[%emt 0:03:05]} Rxg5 {[%emt 0:00:04]} 32. Nde3 {[%emt 0:01:16]} Be6 {[%emt 0:00:42]} 33. Ke2 {[%emt 0:00:38]} Rh8 {[%emt 0:01:40]} 34. Rab1 {[%emt 0:00:27]} Qa4 {[%emt 0:01:08]} 35. b5 {[%emt 0:03:05]} Bd7 {[%emt 0:00:39]} 36. Rh1 {[%emt 0:08:43]} Rxh1 {[%emt 0:05:14]} 37. Qxh1 {[%emt 0:00:06]} Bxb5 {[%emt 0:00:34]} 38. Qh7 {[%emt 0:01:05]} Bd8 {[%emt 0:00:51]} 39. Qf7 {[%emt 0:00:59]} b6 {[%emt 0:01:42]} 40. Rh1 {[%emt 0:00:00]} Be8 {[%emt 0:00:00]} 41. Qf8 {[%emt 0:06:07]} Rh5 {[%emt 0:04:50]} 42. Rxh5 {[%emt 0:03:19]} Bxh5+ {[%emt 0:00:06]} 43. g4 {[%emt 0:00:08]} Qe8 {[%emt 0:03:08]} 44. Qh6 {[%emt 0:06:59]} Bf7 {[%emt 0:01:05]} 45. Nd5 {[%emt 0:00:36]} Qe6 {[%emt 0:07:30]} 46. Qg7 {[%emt 0:00:53]} Be8 {[%emt 0:04:00]} 47. Kf3 {[%emt 0:05:20]} Qd7 {[%emt 0:04:45]} 48. Qf8 {[%emt 0:01:11]} Qe6 {[%emt 0:00:41]} 49. Kg3 {[%emt 0:03:45]} Qf7 {[%emt 0:02:58]} 50. Qh8 {[%emt 0:00:15]} b5 {[%emt 0:01:19]} 51. Nce3 {[%emt 0:01:57]} c6 {[%emt 0:03:31]} 52. Nf5 {[%emt 0:00:09]} Kd7 {[%emt 0:00:17]} 53. Nde3 {[%emt 0:00:49]} a5 {[%emt 0:00:30]} 54. c4 {[%emt 0:03:05]} b4 {[%emt 0:02:19]} 55. a4 {[%emt 0:00:11]} Be7 {[%emt 0:03:28]} 56. Nf1 {[%emt 0:02:12]} Bf8 {[%emt 0:01:19]} 57. Nd2 {[%emt 0:00:18]} Kc7 {[%emt 0:00:07]} 58. Nb3 {[%emt 0:00:14]} Kb6 {[%emt 0:00:04]} 59. f3 {[%emt 0:02:52]} Bd7 {[%emt 0:00:21]} 60. g5 {[%emt 0:00:55]} Bc8 {[%emt 0:02:18]} 61. Qxf6 {[%emt 0:01:47]} Qxf6 {[%emt 0:00:02]} 62. gxf6 Ba6 63. Kg4 {[%emt 0:00:27]} Bb5 {[%emt 0:00:05]} 64. cxb5 {[%emt 0:02:55]} cxb5 {[%emt 0:00:03]} 65. axb5 {[%emt 0:00:22]} a4 {[%emt 0:00:07]} 66. Nd2 {[%emt 0:00:44]} b3 {[%emt 0:00:37]} 67. Ne3 {[%emt 0:01:05]} Kxb5 {[%emt 0:00:31]} 68. Nec4 {[%emt 0:00:23]} Kb4 {[%emt 0:00:20]} 69. Nb1 {[%emt 0:00:11]} b2 {[%emt 0:01:16]} 70. Nxb2 {[%emt 0:01:15]} Kb3 {[%emt 0:00:10]} 71. Nc4 {[%emt 0:00:15]} Kc2 {[%emt 0:00:19]} 72. Nba3+ {[%emt 0:00:07]} Kxd3 {[%emt 0:00:07]} 73. Nxe5+ {[%emt 0:00:15]} 1-0

[Event "24th European Women Club Cup 2019"]
[Site "Ulcinj"]
[Date "2019.11.12"]
[Round "3.13"]
[White "Bodnaruk, Anastasia"]
[Black "Salimova, Nurgyul"]
[Result "1/2-1/2"]
[ECO "C79"]
[WhiteElo "2412"]
[BlackElo "2370"]
[Annotator "ChessBase"]
[PlyCount "103"]
[EventDate "2019.11.10"]
[EventType "team-tourn"]
[EventCountry "MNE"]
[SourceTitle "playchess.com"]
[Source "ChessBase"]
[SourceQuality "1"]
[WhiteTeam "SPB"]
[BlackTeam "Asseco SEE"]
[TimeControl "40/5400+30:1800+30"]

1. e4 {[%emt 0:00:00]} e5 {[%emt 0:00:00]} 2. Nf3 {[%emt 0:00:00]} Nc6 {[%emt 0:00:00]} 3. Bb5 {[%emt 0:00:00]} a6 {[%emt 0:00:00]} 4. Ba4 {[%emt 0:00:00]} d6 {[%emt 0:00:16]} 5. O-O {[%emt 0:03:54]} Nf6 {[%emt 0:04:49]} 6. c3 {[%emt 0:02:34]} Nxe4 {[%emt 0:18:12]} 7. d4 {[%emt 0:01:43]} b5 {[%emt 0:05:11]} 8. Bb3 {[%emt 0:03:50]} d5 {[%emt 0:01:08]} 9. dxe5 {[%emt 0:12:54]} Be6 {[%emt 0:01:02]} 10. Nd4 {[%emt 0:01:08]} Qd7 {[%emt 0:10:38]} 11. a4 {[%emt 0:10:41]} Rb8 12. axb5 {[%emt 0:00:33]} axb5 {[%emt 0:04:32]} 13. Bc2 {[%emt 0:05:08]} Be7 {[%emt 0:09:26]} 14. Qe2 {[%emt 0:25:38]} Nc5 {[%emt 0:13:32]} 15. Nd2 {[%emt 0:04:23]} Nxd4 {[%emt 0:05:59]} 16. cxd4 {[%emt 0:00:19]} Na4 {[%emt 0:00:09]} 17. Nb3 {[%emt 0:06:52]} O-O {[%emt 0:03:56]} 18. Be3 {[%emt 0:04:25]} Rfc8 {[%emt 0:04:57]} 19. f4 {[%emt 0:02:11]} Bg4 {[%emt 0:01:52]} 20. Qd2 {[%emt 0:02:59]} Bf5 {[%emt 0:02:13]} 21. Nc5 {[%emt 0:03:06]} Nxc5 {[%emt 0:01:34]} 22. dxc5 {[%emt 0:01:08]} c6 {[%emt 0:01:50]} 23. b4 {[%emt 0:04:53]} Ra8 {[%emt 0:01:20]} 24. Bd4 {[%emt 0:00:13]} h5 {[%emt 0:00:49]} 25. Bd3 {[%emt 0:01:20]} h4 {[%emt 0:02:01]} 26. Qc2 {[%emt 0:01:17]} Bxd3 {[%emt 0:05:00]} 27. Qxd3 {[%emt 0:00:00]} Qg4 {[%emt 0:00:30]} 28. h3 {[%emt 0:01:28]} Qg3 {[%emt 0:00:43]} 29. Qxg3 {[%emt 0:01:10]} hxg3 {[%emt 0:00:02]} 30. Rfb1 {[%emt 0:00:40]} Kh7 {[%emt 0:00:26]} 31. Kf1 {[%emt 0:00:30]} Kg6 {[%emt 0:00:52]} 32. Ke2 {[%emt 0:00:15]} Kf5 {[%emt 0:00:05]} 33. Kf3 {[%emt 0:00:04]} Rcb8 {[%emt 0:01:09]} 34. Bc3 {[%emt 0:01:09]} g6 {[%emt 0:01:38]} 35. Re1 {[%emt 0:00:31]} Ke6 {[%emt 0:00:42]} 36. Kxg3 {[%emt 0:00:28]} Ra4 {[%emt 0:00:45]} 37. Rxa4 {[%emt 0:00:33]} bxa4 {[%emt 0:00:02]} 38. Ra1 {[%emt 0:00:07]} d4 {[%emt 0:00:22]} 39. Bd2 {[%emt 0:00:40]} Ra8 {[%emt 0:00:13]} 40. Ra3 {[%emt 0:00:00]} Kd5 {[%emt 0:00:00]} 41. Kf3 {[%emt 0:08:17]} f6 {[%emt 0:03:07]} 42. e6 {[%emt 0:06:50]} f5 {[%emt 0:01:29]} 43. Ke2 {[%emt 0:00:47]} Kc4 {[%emt 0:10:26]} 44. Kd1 {[%emt 0:04:56]} Kd5 {[%emt 0:03:53]} 45. Kc2 {[%emt 0:02:25]} Kxe6 {[%emt 0:00:35]} 46. Kd3 {[%emt 0:02:33]} Kd5 {[%emt 0:00:28]} 47. Bc1 {[%emt 0:00:44]} Bh4 {[%emt 0:04:19]} 48. Ra2 {[%emt 0:01:13]} Bf6 {[%emt 0:02:34]} 49. g3 {[%emt 0:00:58]} Rh8 {[%emt 0:02:24]} 50. h4 {[%emt 0:00:43]} Re8 {[%emt 0:00:41]} 51. Bd2 {[%emt 0:01:57]} Ra8 {[%emt 0:00:38]} 52. Bc1 {[%emt 0:00:23] Ke5 Ke4+} 1/2-1/2

[Event "24th European Women Club Cup 2019"]
[Site "Ulcinj"]
[Date "2019.11.12"]
[Round "3.14"]
[White "Krasteva, Beloslava"]
[Black "Ovod, Evgenija"]
[Result "1/2-1/2"]
[ECO "D35"]
[WhiteElo "2261"]
[BlackElo "2347"]
[Annotator "ChessBase"]
[PlyCount "103"]
[EventDate "2019.11.10"]
[EventType "team-tourn"]
[EventCountry "MNE"]
[SourceTitle "playchess.com"]
[Source "ChessBase"]
[SourceQuality "1"]
[WhiteTeam "Asseco SEE"]
[BlackTeam "SPB"]
[TimeControl "40/5400+30:1800+30"]

1. d4 {[%emt 0:00:00]} Nf6 {[%emt 0:00:00]} 2. c4 {[%emt 0:00:02]} e6 {[%emt 0:00:00]} 3. Nc3 {[%emt 0:00:11]} d5 {[%emt 0:00:00]} 4. cxd5 {[%emt 0:00:24]} Nxd5 {[%emt 0:00:00]} 5. e4 {[%emt 0:00:21]} Nxc3 {[%emt 0:00:00]} 6. bxc3 {[%emt 0:00:12]} c5 {[%emt 0:00:01]} 7. Rb1 {[%emt 0:00:24]} Be7 {[%emt 0:00:09]} 8. Nf3 {[%emt 0:00:43]} O-O {[%emt 0:00:08]} 9. Be2 {[%emt 0:00:25]} cxd4 {[%emt 0:04:54]} 10. cxd4 {[%emt 0:00:45]} b6 {[%emt 0:00:06]} 11. O-O {[%emt 0:00:25]} Bb7 {[%emt 0:00:05]} 12. Qd3 {[%emt 0:00:39]} Ba6 {[%emt 0:20:18]} 13. Qe3 {[%emt 0:00:37]} Bxe2 {[%emt 0:00:05]} 14. Qxe2 {[%emt 0:00:09]} Qc8 {[%emt 0:00:04]} 15. Bf4 {[%emt 0:05:56]} Qa6 {[%emt 0:00:09]} 16. Qd2 {[%emt 0:09:53]} Nd7 {[%emt 0:02:57]} 17. Rfe1 {[%emt 0:09:12]} Rac8 {[%emt 0:02:45]} 18. d5 {[%emt 0:05:03]} exd5 {[%emt 0:00:34]} 19. exd5 {[%emt 0:01:12]} Bf6 {[%emt 0:00:15]} 20. Nd4 {[%emt 0:04:58]} Rc4 {[%emt 0:06:48]} 21. Nb5 {[%emt 0:03:04]} Qa4 {[%emt 0:00:21]} 22. Bd6 {[%emt 0:03:02]} Rfc8 {[%emt 0:00:09]} 23. Qd3 {[%emt 0:11:40]} g6 {[%emt 0:26:22]} 24. Qb3 {[%emt 0:18:36]} h5 {[%emt 0:11:58]} 25. h3 {[%emt 0:02:03]} Qa5 {[%emt 0:00:51]} 26. Re8+ {[%emt 0:09:19]} Rxe8 {[%emt 0:02:16]} 27. Qxc4 {[%emt 0:00:05]} Re1+ {[%emt 0:02:07]} 28. Rxe1 {[%emt 0:00:06]} Qxe1+ {[%emt 0:00:03]} 29. Kh2 {[%emt 0:01:35]} Kg7 {[%emt 0:01:33]} 30. Nxa7 {[%emt 0:06:24]} Qxf2 {[%emt 0:00:54]} 31. Nc6 {[%emt 0:00:23]} Qf5 {[%emt 0:08:54]} 32. Bg3 {[%emt 0:02:46]} h4 {[%emt 0:03:28]} 33. Bxh4 {[%emt 0:01:00]} Bxh4 {[%emt 0:00:14]} 34. Qxh4 {[%emt 0:00:06]} Qxd5 {[%emt 0:00:06]} 35. Qd4+ {[%emt 0:03:07]} Qxd4 {[%emt 0:00:34]} 36. Nxd4 {[%emt 0:00:01]} Kf6 {[%emt 0:00:01]} 37. Kg3 {[%emt 0:01:10]} Ke5 {[%emt 0:00:28]} 38. Nf3+ {[%emt 0:00:34]} Kf5 {[%emt 0:01:42]} 39. Kf2 {[%emt 0:00:50]} g5 {[%emt 0:03:56]} 40. Ke3 {[%emt 0:00:00]} g4 {[%emt 0:00:00]} 41. hxg4+ {[%emt 0:05:14]} Kxg4 {[%emt 0:00:44]} 42. Kf2 {[%emt 0:01:28]} Kf4 {[%emt 0:05:18]} 43. g3+ {[%emt 0:00:17]} Kg4 {[%emt 0:00:38]} 44. Nh2+ {[%emt 0:01:10]} Kf5 {[%emt 0:00:30]} 45. Nf3 {[%emt 0:02:23]} f6 {[%emt 0:01:29]} 46. Ke3 {[%emt 0:07:07]} Kg4 {[%emt 0:01:13]} 47. Nd2 {[%emt 0:00:41]} Kxg3 {[%emt 0:03:01]} 48. Ke4 {[%emt 0:01:18]} Kf2 {[%emt 0:05:46]} 49. Kf5 {[%emt 0:03:14]} Ke3 {[%emt 0:03:38]} 50. Nc4+ {[%emt 0:00:15]} Kd4 {[%emt 0:00:05]} 51. Nxb6 {[%emt 0:00:18]} Nxb6 {[%emt 0:00:04]} 52. Kxf6 {[%emt 0:00:04]} 1/2-1/2

[Event "24th European Women Club Cup 2019"]
[Site "Ulcinj"]
[Date "2019.11.12"]
[Round "3.15"]
[White "Belenkaya, Dina"]
[Black "Djukic, Sandra"]
[Result "0-1"]
[ECO "B15"]
[WhiteElo "2302"]
[BlackElo "2148"]
[Annotator "NA"]
[PlyCount "99"]
[EventDate "2019.11.10"]
[EventType "team-tourn"]
[EventCountry "MNE"]
[SourceTitle "playchess.com"]
[Source "ChessBase"]
[SourceQuality "1"]
[WhiteTeam "SPB"]
[BlackTeam "Asseco SEE"]
[TimeControl "40/5400+30:1800+30"]

1. e4 {[%emt 0:00:00]} c6 {[%emt 0:00:00]} 2. d4 {[%emt 0:00:00]} d5 {[%emt 0:00:00]} 3. Nc3 {[%emt 0:00:00]} dxe4 {[%emt 0:00:00]} 4. Nxe4 {[%emt 0:00:03]} Nf6 {[%emt 0:00:00]} 5. Nxf6+ {[%emt 0:02:03]} exf6 {[%emt 0:00:01]} 6. Bc4 {[%emt 0:04:34]} Bd6 {[%emt 0:00:20]} 7. Nf3 {[%emt 0:01:23]} O-O {[%emt 0:00:41]} 8. O-O {[%emt 0:00:30]} Bg4 {[%emt 0:01:29]} 9. h3 {[%emt 0:02:20]} Bh5 {[%emt 0:00:06]} 10. Be3 {[%emt 0:02:59]} Nd7 {[%emt 0:08:01]} 11. a4 {[%emt 0:01:22]} f5 {[%emt 0:23:12]} 12. a5 {[%emt 0:01:54]} Qf6 {[%emt 0:14:12]} 13. Be2 {[%emt 0:05:58]} f4 {[%emt 0:04:14]} 14. Bc1 {[%emt 0:05:28]} Rfe8 {[%emt 0:01:37]} 15. a6 {[%emt 0:19:09]} b6 {[%emt 0:09:06]} 16. d5 {[%emt 0:10:27]} c5 {[%emt 0:08:34]} 17. Bb5 {[%emt 0:05:12]} Ne5 {[%emt 0:04:29]} 18. Bxe8 {[%emt 0:18:06]} Rxe8 {[%emt 0:04:49]} 19. Ra3 {[%emt 0:01:19]} Nxf3+ {[%emt 0:07:19]} 20. Rxf3 {[%emt 0:00:54]} Bxf3 {[%emt 0:00:18]} 21. Qxf3 {[%emt 0:00:22]} Qf5 {[%emt 0:01:57]} 22. c3 {[%emt 0:09:05]} Qe4 {[%emt 0:08:02]} 23. Bd2 {[%emt 0:04:47]} Qxf3 {[%emt 0:01:01]} 24. gxf3 {[%emt 0:00:01]} c4 {[%emt 0:01:38]} 25. Rd1 {[%emt 0:00:42]} g5 {[%emt 0:00:29]} 26. Kf1 {[%emt 0:00:11]} Kg7 {[%emt 0:00:40]} 27. b3 {[%emt 0:00:09]} cxb3 {[%emt 0:00:21]} 28. Rb1 {[%emt 0:00:51]} Rc8 {[%emt 0:00:11]} 29. Rxb3 {[%emt 0:00:26]} Rc5 {[%emt 0:00:04]} 30. Ke2 {[%emt 0:01:58]} Rxd5 {[%emt 0:00:05]} 31. c4 {[%emt 0:00:13]} Re5+ {[%emt 0:00:09]} 32. Kd3 {[%emt 0:00:02]} Kg6 {[%emt 0:01:27]} 33. Bc3 {[%emt 0:00:20]} Re8 {[%emt 0:00:04]} 34. Bd4 {[%emt 0:00:08]} Be5 {[%emt 0:01:49]} 35. Rb5 {[%emt 0:02:37]} Bxd4 {[%emt 0:00:04]} 36. Kxd4 {[%emt 0:00:03]} Re2 {[%emt 0:00:17]} 37. c5 {[%emt 0:01:02]} bxc5+ {[%emt 0:00:12]} 38. Rxc5 {[%emt 0:00:09]} Rxf2 {[%emt 0:01:05]} 39. Rc7 {[%emt 0:00:22]} Rxf3 {[%emt 0:00:06]} 40. Rxa7 {[%emt 0:00:00]} Ra3 {[%emt 0:00:00]} 41. Ra8 {[%emt 0:02:20]} f3 {[%emt 0:01:26]} 42. Rg8+ {[%emt 0:02:53]} Kf5 {[%emt 0:01:53]} 43. Rb8 {[%emt 0:01:38]} Kf4 {[%emt 0:02:17]} 44. Rb4 {[%emt 0:01:35]} f2 {[%emt 0:02:15]} 45. Kc5+ {[%emt 0:02:29]} Ke3 {[%emt 0:00:37]} 46. a7 {[%emt 0:00:11]} Rxa7 {[%emt 0:00:34]} 47. Rb3+ {[%emt 0:00:08]} Ke2 {[%emt 0:00:08]} 48. Rb2+ {[%emt 0:00:03]} Kf3 {[%emt 0:00:04]} 49. Rb1 {[%emt 0:00:22]} Kg2 {[%emt 0:00:23]} 50. Kd4 0-1

[Event "24th European Women Club Cup 2019"]
[Site "Ulcinj"]
[Date "2019.11.12"]
[Round "3.16"]
[White "Bukhteeva, Viktoria"]
[Black "Styazhkina, Anna"]
[Result "0-1"]
[ECO "D15"]
[WhiteElo "2110"]
[BlackElo "2280"]
[Annotator "NA"]
[PlyCount "104"]
[EventDate "2019.11.10"]
[EventType "team-tourn"]
[EventCountry "MNE"]
[SourceTitle "playchess.com"]
[Source "ChessBase"]
[SourceQuality "1"]
[WhiteTeam "Asseco SEE"]
[BlackTeam "SPB"]
[TimeControl "40/5400+30:1800+30"]

1. d4 {[%emt 0:00:00]} d5 {[%emt 0:00:00]} 2. c4 {[%emt 0:00:00]} c6 {[%emt 0:00:00]} 3. Nf3 {[%emt 0:00:00]} Nf6 {[%emt 0:00:00]} 4. Nc3 {[%emt 0:00:03]} a6 {[%emt 0:07:06]} 5. c5 {[%emt 0:00:11]} Bf5 {[%emt 0:10:41]} 6. Bf4 {[%emt 0:00:10]} Nbd7 {[%emt 0:05:09]} 7. e3 {[%emt 0:00:31]} e6 {[%emt 0:10:50]} 8. Be2 {[%emt 0:09:15]} Ne4 {[%emt 0:04:45]} 9. Qb3 {[%emt 0:09:14]} Ra7 {[%emt 0:04:24]} 10. h3 {[%emt 0:13:44]} Be7 {[%emt 0:04:52]} 11. Rc1 {[%emt 0:11:28]} g5 {[%emt 0:12:00]} 12. Bh2 {[%emt 0:01:37]} h5 {[%emt 0:00:41]} 13. Nd2 {[%emt 0:07:11]} Nxd2 {[%emt 0:09:21]} 14. Kxd2 {[%emt 0:00:07]} e5 {[%emt 0:02:55]} 15. g4 {[%emt 0:04:31]} Be6 {[%emt 0:03:46]} 16. Qc2 {[%emt 0:13:24]} Bf6 {[%emt 0:03:01]} 17. Qd3 {[%emt 0:01:42]} h4 {[%emt 0:07:03]} 18. b4 {[%emt 0:01:09]} Bg7 {[%emt 0:01:37]} 19. Rhf1 {[%emt 0:14:07]} exd4 {[%emt 0:04:02]} 20. exd4 {[%emt 0:00:04]} Qf6 {[%emt 0:00:48]} 21. f4 {[%emt 0:03:12]} gxf4 {[%emt 0:00:42]} 22. Bxf4 {[%emt 0:00:48]} Qxd4 {[%emt 0:00:20]} 23. Qxd4 {[%emt 0:00:04]} Bxd4 {[%emt 0:00:04]} 24. Bd3 {[%emt 0:00:17]} a5 {[%emt 0:02:50]} 25. Ne2 {[%emt 0:04:43]} Bb2 {[%emt 0:01:56]} 26. b5 {[%emt 0:01:36]} Ba3 {[%emt 0:03:14]} 27. bxc6 {[%emt 0:01:27]} bxc6 {[%emt 0:00:06]} 28. Bd6 {[%emt 0:01:14]} Rb7 {[%emt 0:01:00]} 29. Rc2 {[%emt 0:01:26]} Rb4 {[%emt 0:00:38]} 30. Nf4 {[%emt 0:00:35]} Kd8 {[%emt 0:00:29]} 31. Nh5 {[%emt 0:00:49]} Rg8 {[%emt 0:00:35]} 32. Rf4 {[%emt 0:00:24]} d4 {[%emt 0:00:30]} 33. Re4 {[%emt 0:00:53]} Ra4 {[%emt 0:00:30]} 34. Nf4 {[%emt 0:00:25]} Bb4+ {[%emt 0:00:28]} 35. Ke2 {[%emt 0:00:09]} Bxa2 {[%emt 0:00:27]} 36. Be7+ {[%emt 0:00:16]} Kc7 {[%emt 0:00:18]} 37. Bd6+ {[%emt 0:00:19]} Kd8 {[%emt 0:00:38]} 38. Be7+ {[%emt 0:00:06]} Kc8 {[%emt 0:00:34]} 39. Ba6+ {[%emt 0:00:16]} Kb8 {[%emt 0:00:07]} 40. Rxd4 {[%emt 0:00:00]} Ka7 {[%emt 0:00:00]} 41. Rxd7+ {[%emt 0:10:50]} Kxa6 {[%emt 0:01:09]} 42. Rc7 {[%emt 0:00:06]} Re8 {[%emt 0:12:53]} 43. Kf2 {[%emt 0:08:33]} Bb3 {[%emt 0:08:27]} 44. Rxc6+ {[%emt 0:02:25]} Kb7 {[%emt 0:00:35]} 45. Rb6+ {[%emt 0:00:27]} Kc8 {[%emt 0:01:10]} 46. Bd6 {[%emt 0:04:24]} Be1+ {[%emt 0:08:26]} 47. Kg2 {[%emt 0:00:36]} Rb4 {[%emt 0:00:29]} 48. Rc6+ {[%emt 0:03:20]} Kd8 {[%emt 0:01:27]} 49. Rb2 {[%emt 0:03:45]} Bd5+ {[%emt 0:00:32]} 50. Nxd5 {[%emt 0:00:06]} Rxb2+ {[%emt 0:00:04]} 51. Kf1 {[%emt 0:01:11]} Bg3 {[%emt 0:01:04]} 52. Bc7+ {[%emt 0:02:05]} Kd7 {[%emt 0:00:38]} 0-1